[Event "*** SCC Grand Prix: Titled Tuesday Blitz"]
[Site "Chess.com"]
[Date "2020.07.07"]
[Round "10"]
[White "malakismayil"]
[Black "Bastiandash"]
[Result "1-0"]
[WhiteElo "2165"]
[BlackElo "2306"]
[TimeControl "180+1"]
[EndTime "11:58:07 PDT"]
[Termination "malakismayil won by checkmate"]

1. e4 {[%clk 0:03:00.9]} 1... c5 {[%clk 0:02:58.1]} 2. Nf3 {[%clk 0:03:00.8]}
2... e6 {[%clk 0:02:58]} 3. d4 {[%clk 0:03:00.1]} 3... cxd4 {[%clk 0:02:58.9]}
4. Nxd4 {[%clk 0:02:59.2]} 4... a6 {[%clk 0:02:59.3]} 5. Bd3 {[%clk 0:02:57.5]}
5... Bc5 {[%clk 0:02:57.5]} 6. Nb3 {[%clk 0:02:56.5]} 6... Be7 {[%clk
0:02:54.8]} 7. O-O {[%clk 0:02:56.6]} 7... Qc7 {[%clk 0:02:52.9]} 8. Nc3 {[%clk
0:02:55.7]} 8... b5 {[%clk 0:02:50.1]} 9. a3 {[%clk 0:02:54.8]} 9... Bb7 {[%clk
0:02:50]} 10. Be3 {[%clk 0:02:52.8]} 10... Nf6 {[%clk 0:02:49.9]} 11. h3 {[%clk
0:02:51.1]} 11... d6 {[%clk 0:02:47.1]} 12. f4 {[%clk 0:02:50.1]} 12... Nbd7
{[%clk 0:02:47]} 13. Qe2 {[%clk 0:02:46.1]} 13... h5 {[%clk 0:02:46.8]} 14. Rae1
{[%clk 0:02:43.7]} 14... h4 {[%clk 0:02:46.3]} 15. Qd2 {[%clk 0:02:29.2]} 15...
Nc5 {[%clk 0:02:38.4]} 16. Bf2 {[%clk 0:02:24.1]} 16... Nxd3 {[%clk 0:02:21.8]}
17. cxd3 {[%clk 0:02:22.5]} 17... Rc8 {[%clk 0:02:22.4]} 18. Rc1 {[%clk
0:02:15.6]} 18... Qd7 {[%clk 0:02:17.8]} 19. Be3 {[%clk 0:02:05]} 19... Nh5
{[%clk 0:02:02.2]} 20. Ne2 {[%clk 0:02:02.1]} 20... O-O {[%clk 0:01:56.5]} 21.
f5 {[%clk 0:01:42]} 21... g6 {[%clk 0:01:40.5]} 22. Bg5 {[%clk 0:01:20.2]} 22...
exf5 {[%clk 0:01:32.9]} 23. exf5 {[%clk 0:01:08.7]} 23... Rfe8 {[%clk
0:01:14.7]} 24. Nbd4 {[%clk 0:00:56.5]} 24... Rxc1 {[%clk 0:00:55]} 25. Qxc1
{[%clk 0:00:54.5]} 25... Bd8 {[%clk 0:00:30.1]} 26. fxg6 {[%clk 0:00:33]} 26...
fxg6 {[%clk 0:00:29.6]} 27. Bxd8 {[%clk 0:00:32.8]} 27... Qxd8 {[%clk
0:00:30.2]} 28. Qh6 {[%clk 0:00:31.1]} 28... Ng7 {[%clk 0:00:12.7]} 29. Qxg6
{[%clk 0:00:27.6]} 29... Qe7 {[%clk 0:00:09.6]} 30. Nf5 {[%clk 0:00:20.4]} 30...
Qd7 {[%clk 0:00:05.4]} 31. Nh6+ {[%clk 0:00:12.9]} 31... Kh8 {[%clk 0:00:04.4]}
32. Rf7 {[%clk 0:00:10.5]} 32... Re6 {[%clk 0:00:01.2]} 33. Qxg7# {[%clk
0:00:09.6]} 1-0

[Event "*** SCC Grand Prix: Titled Tuesday Blitz"]
[Site "Chess.com"]
[Date "2020.07.07"]
[Round "10"]
[White "Timerkhanov"]
[Black "KuzubovYuriy"]
[Result "1-0"]
[WhiteElo "2646"]
[BlackElo "2821"]
[TimeControl "180+1"]
[EndTime "11:58:08 PDT"]
[Termination "Timerkhanov won on time"]

1. d4 {[%clk 0:03:00.9]} 1... Nf6 {[%clk 0:02:59.1]} 2. Bg5 {[%clk 0:03:00.7]}
2... d5 {[%clk 0:02:55.5]} 3. Nd2 {[%clk 0:03:00.2]} 3... e6 {[%clk 0:02:52.6]}
4. e3 {[%clk 0:03:00.5]} 4... c5 {[%clk 0:02:49.1]} 5. c3 {[%clk 0:03:00.6]}
5... Nc6 {[%clk 0:02:47.8]} 6. f4 {[%clk 0:02:58.9]} 6... h6 {[%clk 0:02:46.2]}
7. Bxf6 {[%clk 0:02:58.8]} 7... Qxf6 {[%clk 0:02:43.6]} 8. Ngf3 {[%clk
0:02:58.9]} 8... g5 {[%clk 0:02:37.1]} 9. g3 {[%clk 0:02:57.1]} 9... gxf4 {[%clk
0:02:35]} 10. gxf4 {[%clk 0:02:54.9]} 10... Bd7 {[%clk 0:02:30.7]} 11. a3 {[%clk
0:02:53.9]} 11... O-O-O {[%clk 0:02:18.5]} 12. Bd3 {[%clk 0:02:51.5]} 12... Kb8
{[%clk 0:02:15.5]} 13. Qe2 {[%clk 0:02:50.4]} 13... Rc8 {[%clk 0:01:42.8]} 14.
b4 {[%clk 0:02:40.2]} 14... cxd4 {[%clk 0:01:39.5]} 15. cxd4 {[%clk 0:02:37]}
15... Ne7 {[%clk 0:01:37.7]} 16. Ne5 {[%clk 0:02:32.5]} 16... Be8 {[%clk
0:01:36.8]} 17. O-O {[%clk 0:02:14]} 17... Nf5 {[%clk 0:01:29.5]} 18. Rac1
{[%clk 0:01:52]} 18... Rxc1 {[%clk 0:01:19.7]} 19. Rxc1 {[%clk 0:01:51.4]} 19...
Nd6 {[%clk 0:01:17.6]} 20. Kh1 {[%clk 0:01:47.6]} 20... Qd8 {[%clk 0:01:03.1]}
21. Rg1 {[%clk 0:01:03.7]} 21... Be7 {[%clk 0:00:56.7]} 22. Qf3 {[%clk
0:00:58.5]} 22... a5 {[%clk 0:00:48.7]} 23. Nb3 {[%clk 0:00:52.5]} 23... axb4
{[%clk 0:00:28.8]} 24. axb4 {[%clk 0:00:53.4]} 24... Nc4 {[%clk 0:00:28.6]} 25.
Nc5 {[%clk 0:00:43.9]} 25... Nxe5 {[%clk 0:00:18.6]} 26. fxe5 {[%clk 0:00:42.5]}
26... Qb6 {[%clk 0:00:19.1]} 27. Qg3 {[%clk 0:00:19.6]} 27... Bf8 {[%clk
0:00:14.1]} 28. Qf4 {[%clk 0:00:15.9]} 28... Be7 {[%clk 0:00:13.6]} 29. Qg3
{[%clk 0:00:15.8]} 29... Bf8 {[%clk 0:00:08.5]} 30. Qf2 {[%clk 0:00:15.4]} 30...
Be7 {[%clk 0:00:08]} 31. Qa2 {[%clk 0:00:15.5]} 31... f6 {[%clk 0:00:04.9]} 32.
Ra1 {[%clk 0:00:14.9]} 32... fxe5 {[%clk 0:00:04.2]} 33. Qa8+ {[%clk 0:00:14.1]}
33... Kc7 {[%clk 0:00:04.4]} 34. Rc1 {[%clk 0:00:14.7]} 34... Bxc5 {[%clk
0:00:02.5]} 35. Rxc5+ {[%clk 0:00:13.7]} 1-0

[Event "*** SCC Grand Prix: Titled Tuesday Blitz"]
[Site "Chess.com"]
[Date "2020.07.07"]
[Round "10"]
[White "RobertoJBM"]
[Black "Isajevsky_Anton"]
[Result "1-0"]
[WhiteElo "2716"]
[BlackElo "2555"]
[TimeControl "180+1"]
[EndTime "11:58:09 PDT"]
[Termination "RobertoJBM won on time"]

1. d4 {[%clk 0:03:00.9]} 1... d5 {[%clk 0:02:59.7]} 2. c4 {[%clk 0:03:01]} 2...
e6 {[%clk 0:02:59.9]} 3. Nc3 {[%clk 0:03:01.2]} 3... Nf6 {[%clk 0:02:59.8]} 4.
cxd5 {[%clk 0:03:01.3]} 4... exd5 {[%clk 0:02:59.8]} 5. Bg5 {[%clk 0:03:01.3]}
5... c6 {[%clk 0:03:00]} 6. e3 {[%clk 0:03:01.6]} 6... Bf5 {[%clk 0:02:55.9]} 7.
Qf3 {[%clk 0:03:01.4]} 7... Bg6 {[%clk 0:02:56.2]} 8. Bxf6 {[%clk 0:03:01.6]}
8... Qxf6 {[%clk 0:02:56.4]} 9. Qxf6 {[%clk 0:03:01.9]} 9... gxf6 {[%clk
0:02:57.3]} 10. h4 {[%clk 0:03:02.8]} 10... Nd7 {[%clk 0:02:53.7]} 11. Nge2
{[%clk 0:02:59.6]} 11... Bd6 {[%clk 0:02:51.6]} 12. g3 {[%clk 0:02:58]} 12...
Nb6 {[%clk 0:02:45.7]} 13. Nf4 {[%clk 0:02:55.7]} 13... Bxf4 {[%clk 0:02:45.2]}
14. gxf4 {[%clk 0:02:56.6]} 14... Nc8 {[%clk 0:02:42.4]} 15. Kd2 {[%clk
0:02:52.2]} 15... Nd6 {[%clk 0:02:42.3]} 16. Bd3 {[%clk 0:02:49.7]} 16... Ke7
{[%clk 0:02:42.1]} 17. Rag1 {[%clk 0:02:45.2]} 17... Rhg8 {[%clk 0:02:40.5]} 18.
Be2 {[%clk 0:02:42.5]} 18... Bf5 {[%clk 0:02:21.2]} 19. f3 {[%clk 0:02:36.6]}
19... Rae8 {[%clk 0:02:01.4]} 20. Ke1 {[%clk 0:02:34]} 20... Kd7 {[%clk
0:01:54.9]} 21. Kf2 {[%clk 0:02:34]} 21... Ke7 {[%clk 0:01:26.5]} 22. Rxg8
{[%clk 0:02:29]} 22... Rxg8 {[%clk 0:01:26.1]} 23. Re1 {[%clk 0:02:26.8]} 23...
Kd7 {[%clk 0:01:23.4]} 24. Bf1 {[%clk 0:02:23.9]} 24... Re8 {[%clk 0:01:20.7]}
25. b3 {[%clk 0:02:24.5]} 25... b6 {[%clk 0:01:13.6]} 26. Bg2 {[%clk 0:02:24.1]}
26... Bd3 {[%clk 0:01:06.7]} 27. e4 {[%clk 0:02:23.2]} 27... Nb5 {[%clk
0:01:00.9]} 28. Nxb5 {[%clk 0:02:07.3]} 28... Bxb5 {[%clk 0:00:59.7]} 29. Bh3+
{[%clk 0:02:00]} 29... Kd8 {[%clk 0:00:37.5]} 30. Bf5 {[%clk 0:01:58.5]} 30...
Rg8 {[%clk 0:00:33.4]} 31. Rc1 {[%clk 0:01:33.7]} 31... dxe4 {[%clk 0:00:29]}
32. fxe4 {[%clk 0:01:30.5]} 32... Kc7 {[%clk 0:00:26.2]} 33. b4 {[%clk
0:01:23.4]} 33... Kd6 {[%clk 0:00:23]} 34. a3 {[%clk 0:01:12.7]} 34... h6 {[%clk
0:00:22.3]} 35. Bh3 {[%clk 0:01:10.8]} 35... Bd3 {[%clk 0:00:19.5]} 36. Bg2
{[%clk 0:01:10.7]} 36... Bb5 {[%clk 0:00:17.7]} 37. Bf3 {[%clk 0:01:10.3]} 37...
Kd7 {[%clk 0:00:12.3]} 38. e5 {[%clk 0:01:09.3]} 38... fxe5 {[%clk 0:00:11.1]}
39. dxe5 {[%clk 0:01:10.2]} 39... Ke7 {[%clk 0:00:08.3]} 40. f5 {[%clk
0:01:06.5]} 40... f6 {[%clk 0:00:04.5]} 41. e6 {[%clk 0:00:56.2]} 41... Kd6
{[%clk 0:00:04.7]} 42. Re1 {[%clk 0:00:48.4]} 42... c5 {[%clk 0:00:03]} 43.
bxc5+ {[%clk 0:00:47]} 43... bxc5 {[%clk 0:00:03.2]} 44. Bh5 {[%clk 0:00:47.5]}
44... Ke7 {[%clk 0:00:01.9]} 45. Rb1 {[%clk 0:00:41.7]} 45... a6 {[%clk
0:00:01.3]} 46. a4 {[%clk 0:00:41.4]} 1-0

[Event "*** SCC Grand Prix: Titled Tuesday Blitz"]
[Site "Chess.com"]
[Date "2020.07.07"]
[Round "10"]
[White "GelmanAlexander"]
[Black "1977Ivan"]
[Result "1-0"]
[WhiteElo "2570"]
[BlackElo "2674"]
[TimeControl "180+1"]
[EndTime "11:58:09 PDT"]
[Termination "GelmanAlexander won by resignation"]

1. c4 {[%clk 0:03:00.9]} 1... e5 {[%clk 0:02:58.1]} 2. e3 {[%clk 0:03:00.7]}
2... Nf6 {[%clk 0:02:55.3]} 3. a3 {[%clk 0:03:00.8]} 3... g6 {[%clk 0:02:48.5]}
4. d3 {[%clk 0:02:59.1]} 4... Bg7 {[%clk 0:02:48.4]} 5. Nf3 {[%clk 0:02:57.8]}
5... Nc6 {[%clk 0:02:48]} 6. Nc3 {[%clk 0:02:56]} 6... O-O {[%clk 0:02:47.6]} 7.
Be2 {[%clk 0:02:56]} 7... d5 {[%clk 0:02:38]} 8. cxd5 {[%clk 0:02:56]} 8... Nxd5
{[%clk 0:02:38.9]} 9. Bd2 {[%clk 0:02:56.6]} 9... a5 {[%clk 0:02:34.5]} 10. O-O
{[%clk 0:02:56.2]} 10... b6 {[%clk 0:02:19.8]} 11. Rc1 {[%clk 0:02:50.7]} 11...
Bb7 {[%clk 0:02:19.2]} 12. Qc2 {[%clk 0:02:49.7]} 12... h6 {[%clk 0:02:14]} 13.
h3 {[%clk 0:02:48.3]} 13... Kh7 {[%clk 0:02:06.2]} 14. Ne4 {[%clk 0:02:44.6]}
14... f5 {[%clk 0:02:02.3]} 15. Ng3 {[%clk 0:02:44.7]} 15... Qd7 {[%clk
0:01:56]} 16. Rfe1 {[%clk 0:02:39.4]} 16... f4 {[%clk 0:01:52.9]} 17. Ne4 {[%clk
0:02:38.9]} 17... Rad8 {[%clk 0:01:37.6]} 18. Rf1 {[%clk 0:02:29.4]} 18... Kh8
{[%clk 0:01:30.4]} 19. Nh2 {[%clk 0:02:22.8]} 19... Qf7 {[%clk 0:01:25.4]} 20.
Nf3 {[%clk 0:02:21.1]} 20... g5 {[%clk 0:01:24.2]} 21. Nh2 {[%clk 0:02:20.2]}
21... Qg6 {[%clk 0:01:20.4]} 22. Qd1 {[%clk 0:02:19.4]} 22... Nce7 {[%clk
0:01:13.1]} 23. Bh5 {[%clk 0:02:16.1]} 23... Qe6 {[%clk 0:01:10]} 24. Qe2 {[%clk
0:02:14.9]} 24... Nf5 {[%clk 0:01:09.5]} 25. Bg4 {[%clk 0:02:13.3]} 25... Qe7
{[%clk 0:01:04.4]} 26. Nf3 {[%clk 0:02:11.4]} 26... Ba6 {[%clk 0:01:02.1]} 27.
Rfd1 {[%clk 0:02:06.5]} 27... Ndxe3 {[%clk 0:01:00.5]} 28. Bxe3 {[%clk
0:02:02.4]} 28... fxe3 {[%clk 0:00:59.8]} 29. fxe3 {[%clk 0:02:02.9]} 29... Nd6
{[%clk 0:00:56.1]} 30. Nfd2 {[%clk 0:01:55]} 30... a4 {[%clk 0:00:38.8]} 31. Bf3
{[%clk 0:01:49.1]} 31... Nf5 {[%clk 0:00:37.5]} 32. Nf1 {[%clk 0:01:43.7]} 32...
c5 {[%clk 0:00:35.9]} 33. Qc2 {[%clk 0:01:38.3]} 33... Nh4 {[%clk 0:00:34.7]}
34. Be2 {[%clk 0:01:31.9]} 34... Qf7 {[%clk 0:00:35]} 35. Qxa4 {[%clk
0:01:28.4]} 35... Bb7 {[%clk 0:00:34.9]} 36. Nfg3 {[%clk 0:01:24.6]} 36... Qg6
{[%clk 0:00:28]} 37. Rf1 {[%clk 0:01:20]} 37... Bd5 {[%clk 0:00:23.7]} 38. Rxf8+
{[%clk 0:01:15.5]} 38... Bxf8 {[%clk 0:00:23.1]} 39. Rf1 {[%clk 0:01:14.2]}
39... Be7 {[%clk 0:00:22.7]} 40. Qa7 {[%clk 0:01:10.7]} 40... Re8 {[%clk
0:00:20.7]} 41. Qd7 {[%clk 0:01:08.9]} 41... Bc6 {[%clk 0:00:20.5]} 42. Qc7
{[%clk 0:01:05]} 42... c4 {[%clk 0:00:20.1]} 43. Qxe5+ {[%clk 0:00:55.6]} 43...
Kh7 {[%clk 0:00:18]} 44. Bh5 {[%clk 0:00:44.3]} 44... Qg8 {[%clk 0:00:13.2]} 45.
Bxe8 {[%clk 0:00:40.1]} 45... Qxe8 {[%clk 0:00:14.1]} 46. dxc4 {[%clk
0:00:37.5]} 46... Bc5 {[%clk 0:00:06.1]} 47. Nf6+ {[%clk 0:00:36.6]} 1-0

[Event "*** SCC Grand Prix: Titled Tuesday Blitz"]
[Site "Chess.com"]
[Date "2020.07.07"]
[Round "10"]
[White "Andrei_Belozerov"]
[Black "Budisavljevic"]
[Result "1-0"]
[WhiteElo "2559"]
[BlackElo "2410"]
[TimeControl "180+1"]
[EndTime "11:58:09 PDT"]
[Termination "Andrei_Belozerov won on time"]

1. e4 {[%clk 0:03:00.9]} 1... c5 {[%clk 0:02:59.2]} 2. Nf3 {[%clk 0:03:00.6]}
2... e6 {[%clk 0:02:59.7]} 3. d4 {[%clk 0:03:00.7]} 3... cxd4 {[%clk 0:03:00.6]}
4. Nxd4 {[%clk 0:03:00.9]} 4... a6 {[%clk 0:03:01.2]} 5. Bd3 {[%clk 0:03:00.2]}
5... Bc5 {[%clk 0:02:56.9]} 6. Nb3 {[%clk 0:02:59.7]} 6... Be7 {[%clk
0:02:57.3]} 7. Qg4 {[%clk 0:02:58.8]} 7... Nf6 {[%clk 0:02:49.1]} 8. Qg3 {[%clk
0:02:54.2]} 8... d6 {[%clk 0:02:25.1]} 9. Nc3 {[%clk 0:02:51]} 9... Nbd7 {[%clk
0:02:22.8]} 10. Be3 {[%clk 0:02:36.2]} 10... O-O {[%clk 0:02:17.8]} 11. O-O-O
{[%clk 0:02:27.8]} 11... b5 {[%clk 0:02:17.6]} 12. f4 {[%clk 0:02:27.1]} 12...
b4 {[%clk 0:02:15.9]} 13. Ne2 {[%clk 0:02:24.2]} 13... a5 {[%clk 0:02:14.6]} 14.
Nbd4 {[%clk 0:02:21.3]} 14... Bb7 {[%clk 0:02:11.8]} 15. e5 {[%clk 0:02:20.4]}
15... Nd5 {[%clk 0:02:06.6]} 16. Qh3 {[%clk 0:01:51.8]} 16... g6 {[%clk
0:02:01.9]} 17. f5 {[%clk 0:01:33.7]} 17... Nxe3 {[%clk 0:01:38.9]} 18. fxe6
{[%clk 0:01:31.6]} 18... Nxe5 {[%clk 0:01:32.8]} 19. Qxe3 {[%clk 0:01:26.1]}
19... Bg5 {[%clk 0:01:24.5]} 20. Nf4 {[%clk 0:01:25.9]} 20... Qf6 {[%clk
0:01:19.3]} 21. Rhf1 {[%clk 0:01:23.3]} 21... fxe6 {[%clk 0:00:49.3]} 22. g3
{[%clk 0:01:20.7]} 22... Nxd3+ {[%clk 0:00:48.2]} 23. Qxd3 {[%clk 0:01:17.9]}
23... e5 {[%clk 0:00:48.3]} 24. Qb5 {[%clk 0:01:00.8]} 24... exf4 {[%clk
0:00:35.5]} 25. Kb1 {[%clk 0:00:50.5]} 25... Be4 {[%clk 0:00:27.5]} 26. gxf4
{[%clk 0:00:42.6]} 26... Bxf4 {[%clk 0:00:21.6]} 27. Ne2 {[%clk 0:00:42.2]}
27... g5 {[%clk 0:00:17.9]} 28. h4 {[%clk 0:00:41.6]} 28... Qg6 {[%clk
0:00:11.5]} 29. Nxf4 {[%clk 0:00:38.5]} 29... Rxf4 {[%clk 0:00:05.8]} 30. Rg1
{[%clk 0:00:32.3]} 30... Bxc2+ {[%clk 0:00:05.3]} 31. Kc1 {[%clk 0:00:28.2]}
31... g4 {[%clk 0:00:03.9]} 32. Qd5+ {[%clk 0:00:24.1]} 32... Kg7 {[%clk
0:00:04.4]} 33. Qxa8 {[%clk 0:00:23.7]} 33... Bxd1 {[%clk 0:00:05]} 34. Rxd1
{[%clk 0:00:19.8]} 34... Rc4+ {[%clk 0:00:04.2]} 35. Kd2 {[%clk 0:00:20.3]}
35... Qc2+ {[%clk 0:00:04.3]} 36. Ke3 {[%clk 0:00:20.4]} 36... Qd2+ {[%clk
0:00:01.1]} 37. Rxd2 {[%clk 0:00:19.5]} 1-0

[Event "*** SCC Grand Prix: Titled Tuesday Blitz"]
[Site "Chess.com"]
[Date "2020.07.07"]
[Round "10"]
[White "Djager97"]
[Black "Maili15"]
[Result "1-0"]
[WhiteElo "2394"]
[BlackElo "2260"]
[TimeControl "180+1"]
[EndTime "11:58:09 PDT"]
[Termination "Djager97 won on time"]

1. e4 {[%clk 0:03:00.9]} 1... c5 {[%clk 0:02:59.9]} 2. Nf3 {[%clk 0:03:00]} 2...
d6 {[%clk 0:03:00.1]} 3. d4 {[%clk 0:03:00.5]} 3... cxd4 {[%clk 0:03:00.8]} 4.
Nxd4 {[%clk 0:03:01.4]} 4... Nf6 {[%clk 0:03:01.3]} 5. Nc3 {[%clk 0:03:01.2]}
5... a6 {[%clk 0:03:01.8]} 6. Bg5 {[%clk 0:03:01.1]} 6... Nbd7 {[%clk
0:03:01.1]} 7. f4 {[%clk 0:03:01]} 7... Qc7 {[%clk 0:03:01.1]} 8. Qf3 {[%clk
0:03:01.3]} 8... h6 {[%clk 0:03:01.4]} 9. Bxf6 {[%clk 0:03:00.6]} 9... Nxf6
{[%clk 0:03:01]} 10. f5 {[%clk 0:03:01.5]} 10... g5 {[%clk 0:03:00.1]} 11. fxg6
{[%clk 0:02:59.9]} 11... fxg6 {[%clk 0:02:54.7]} 12. O-O-O {[%clk 0:02:57.5]}
12... Bg4 {[%clk 0:02:53.4]} 13. Qg3 {[%clk 0:02:58]} 13... Kf7 {[%clk
0:02:41.3]} 14. Bd3 {[%clk 0:02:50]} 14... Bxd1 {[%clk 0:02:33.7]} 15. e5 {[%clk
0:02:50.3]} 15... Bh5 {[%clk 0:02:30.6]} 16. exf6 {[%clk 0:02:47.7]} 16... exf6
{[%clk 0:02:08.1]} 17. Nd5 {[%clk 0:02:25]} 17... Qc5 {[%clk 0:02:04.9]} 18. Nf4
{[%clk 0:02:25.5]} 18... Qxd4 {[%clk 0:01:32.5]} 19. Nxh5 {[%clk 0:02:25.4]}
19... Rg8 {[%clk 0:01:23.7]} 20. Nf4 {[%clk 0:02:24.8]} 20... g5 {[%clk
0:01:19.9]} 21. Ne2 {[%clk 0:01:57.6]} 21... Qe5 {[%clk 0:01:12.9]} 22. Qh3
{[%clk 0:01:57.4]} 22... Kg7 {[%clk 0:01:02.6]} 23. Qh5 {[%clk 0:01:51.6]} 23...
Kh8 {[%clk 0:00:55.7]} 24. Rf1 {[%clk 0:01:51.9]} 24... Re8 {[%clk 0:00:39.1]}
25. Rf5 {[%clk 0:01:50.3]} 25... Qe3+ {[%clk 0:00:36]} 26. Kd1 {[%clk
0:01:50.6]} 26... Re6 {[%clk 0:00:29.3]} 27. Qf7 {[%clk 0:01:47.7]} 27... Bg7
{[%clk 0:00:26.4]} 28. Rf3 {[%clk 0:01:43.2]} 28... Qxf3 {[%clk 0:00:05.6]} 29.
gxf3 {[%clk 0:01:42.6]} 29... Re5 {[%clk 0:00:04.6]} 30. Qg6 {[%clk 0:01:38.2]}
30... f5 {[%clk 0:00:04.5]} 31. Bxf5 {[%clk 0:01:36.5]} 31... Rxf5 {[%clk
0:00:04.8]} 32. Qxf5 {[%clk 0:01:36.1]} 32... Rf8 {[%clk 0:00:05.4]} 33. Qe4
{[%clk 0:01:33.7]} 33... b5 {[%clk 0:00:05]} 34. Ng3 {[%clk 0:01:32.4]} 34...
Bxb2 {[%clk 0:00:04.4]} 35. Nf5 {[%clk 0:01:23.5]} 35... Bg7 {[%clk 0:00:04]}
36. Nxg7 {[%clk 0:01:21.6]} 36... Kxg7 {[%clk 0:00:04.9]} 37. Qe7+ {[%clk
0:01:20]} 37... Rf7 {[%clk 0:00:04.6]} 38. Qxd6 {[%clk 0:01:20.4]} 38... Rxf3
{[%clk 0:00:04.4]} 39. Qxa6 {[%clk 0:01:19.6]} 39... Rf1+ {[%clk 0:00:02.9]} 40.
Ke2 {[%clk 0:01:18.9]} 40... Rf5 {[%clk 0:00:02.8]} 41. Qb7+ {[%clk 0:01:14.8]}
41... Kg6 {[%clk 0:00:02.6]} 42. Qc6+ {[%clk 0:00:47.5]} 42... Kg7 {[%clk
0:00:02.5]} 43. c4 {[%clk 0:00:43.8]} 43... bxc4 {[%clk 0:00:02]} 44. Qxc4
{[%clk 0:00:43.7]} 44... h5 {[%clk 0:00:02.2]} 45. a4 {[%clk 0:00:43.6]} 45...
g4 {[%clk 0:00:01.7]} 46. Qc7+ {[%clk 0:00:43]} 46... Kg6 {[%clk 0:00:01.5]} 47.
a5 {[%clk 0:00:43.5]} 47... Kg5 {[%clk 0:00:01.2]} 48. a6 {[%clk 0:00:43.8]} 1-0

[Event "*** SCC Grand Prix: Titled Tuesday Blitz"]
[Site "Chess.com"]
[Date "2020.07.07"]
[Round "10"]
[White "alfiefischer77"]
[Black "Juanovic"]
[Result "0-1"]
[WhiteElo "2263"]
[BlackElo "2094"]
[TimeControl "180+1"]
[EndTime "11:58:10 PDT"]
[Termination "Juanovic won by resignation"]

1. e4 {[%clk 0:03:00.9]} 1... c5 {[%clk 0:02:59.8]} 2. Nf3 {[%clk 0:03:00.8]}
2... d6 {[%clk 0:02:59.4]} 3. d4 {[%clk 0:03:01.1]} 3... cxd4 {[%clk 0:02:59.7]}
4. Nxd4 {[%clk 0:03:02]} 4... Nf6 {[%clk 0:03:00.3]} 5. Nc3 {[%clk 0:03:02.5]}
5... g6 {[%clk 0:03:00.6]} 6. Be3 {[%clk 0:03:02.1]} 6... Bg7 {[%clk 0:03:00.9]}
7. Bc4 {[%clk 0:03:02.3]} 7... Nc6 {[%clk 0:03:01.1]} 8. f3 {[%clk 0:03:00.4]}
8... O-O {[%clk 0:02:55.5]} 9. Qd2 {[%clk 0:03:00.4]} 9... Bd7 {[%clk
0:02:54.7]} 10. O-O-O {[%clk 0:03:00.6]} 10... Rc8 {[%clk 0:02:54.1]} 11. Bb3
{[%clk 0:03:01.1]} 11... Ne5 {[%clk 0:02:53.7]} 12. h4 {[%clk 0:03:00.6]} 12...
Nc4 {[%clk 0:02:53.9]} 13. Bxc4 {[%clk 0:02:59.3]} 13... Rxc4 {[%clk 0:02:54.8]}
14. h5 {[%clk 0:02:59]} 14... a6 {[%clk 0:02:48.5]} 15. hxg6 {[%clk 0:02:39.2]}
15... fxg6 {[%clk 0:02:48.2]} 16. Bh6 {[%clk 0:02:39.4]} 16... Bxh6 {[%clk
0:02:47.6]} 17. Qxh6 {[%clk 0:02:39]} 17... Rxc3 {[%clk 0:02:47.7]} 18. bxc3
{[%clk 0:02:36.4]} 18... Qa5 {[%clk 0:02:45.3]} 19. Nb3 {[%clk 0:02:12.3]} 19...
Qxc3 {[%clk 0:02:35.9]} 20. Rd3 {[%clk 0:02:06.5]} 20... Qc4 {[%clk 0:02:19.9]}
21. g4 {[%clk 0:00:43]} 21... Rc8 {[%clk 0:02:14.8]} 22. Qd2 {[%clk 0:00:41.3]}
22... Be6 {[%clk 0:01:50.7]} 23. Rh2 {[%clk 0:00:38.9]} 23... a5 {[%clk
0:01:37.3]} 24. e5 {[%clk 0:00:19.2]} 24... dxe5 {[%clk 0:01:32.4]} 25. Rd8+
{[%clk 0:00:17.6]} 25... Kf7 {[%clk 0:01:04.8]} 26. Rxc8 {[%clk 0:00:09.7]}
26... Bxc8 {[%clk 0:01:03.2]} 27. Nxa5 {[%clk 0:00:08.2]} 27... Qxa2 {[%clk
0:00:59.9]} 28. Nb3 {[%clk 0:00:08.3]} 28... Be6 {[%clk 0:00:55.3]} 29. Qc3
{[%clk 0:00:08.3]} 29... Qa3+ {[%clk 0:00:48]} 30. Qb2 {[%clk 0:00:05.5]} 30...
Qd6 {[%clk 0:00:47.8]} 31. Rd2 {[%clk 0:00:04.9]} 31... Qc6 {[%clk 0:00:39.9]}
32. Rd3 {[%clk 0:00:03.2]} 32... e4 {[%clk 0:00:39]} 33. fxe4 {[%clk 0:00:02.5]}
33... Qxe4 {[%clk 0:00:39.2]} 34. Kb1 {[%clk 0:00:02.6]} 34... Qxg4 {[%clk
0:00:39]} 35. Nc5 {[%clk 0:00:02.7]} 35... Qg1+ {[%clk 0:00:34.3]} 36. Qc1
{[%clk 0:00:02.8]} 36... Qxc5 {[%clk 0:00:34.4]} 37. Qe3 {[%clk 0:00:01.2]}
37... Qxe3 {[%clk 0:00:30.9]} 38. Rxe3 {[%clk 0:00:02.1]} 38... h5 {[%clk
0:00:30.6]} 39. Rh3 {[%clk 0:00:02.4]} 39... Bxh3 {[%clk 0:00:30.1]} 0-1